bitfinex/quotes_BTCUSD_20240617
["timestamp","ask_amount","ask_price","bid_price","bid_amount"]
[1718633509441,0.23147552,65336.0,65335.0,0.01151]
[1718633509659,0.53758452,65336.0,65335.0,0.01151]
[1718633509867,0.06842152,65336.0,65335.0,0.01151]
[1718633510087,0.06842152,65336.0,65335.0,0.776795]
[1718633510262,0.06842152,65336.0,65335.0,1.342609]
[1718633510569,0.05392129,65336.0,65335.0,0.730381]
[1718633510932,0.0683672,65336.0,65335.0,0.730381]
[1718633511140,0.05392129,65336.0,65335.0,0.730381]
[1718633511545,0.05392129,65336.0,65335.0,0.01151]
[1718633511735,0.06392129,65336.0,65335.0,0.01151]
[1718633511934,0.8436392,65336.0,65335.0,0.01151]
[1718633513231,0.8336392,65336.0,65335.0,0.01151]
[1718633513441,0.0683672,65336.0,65335.0,0.01151]
[1718633513858,0.5275302,65336.0,65335.0,0.01151]
[1718633514053,0.8336392,65336.0,65335.0,0.01151]
[1718633514280,0.5275302,65336.0,65335.0,0.01151]
[1718633514479,0.0683672,65336.0,65335.0,0.01151]
[1718633515102,0.0533512,65336.0,65335.0,0.470681]
[1718633515547,0.0683672,65336.0,65335.0,0.470681]
[1718633515750,0.0683672,65336.0,65335.0,0.01151]
[1718633515953,0.0683672,65336.0,65335.0,0.164567]
[1718633519806,0.0683672,65336.0,65335.0,0.470681]
[1718633520017,0.0533512,65336.0,65335.0,1.410509]
[1718633520225,0.0533512,65336.0,65335.0,1.654009]
[1718633520425,0.03890529,65336.0,65335.0,1.654009]
[1718633521797,0.05392129,65336.0,65335.0,1.654009]
[1718633523362,0.05392129,65336.0,65335.0,1.77489512]
[1718633523590,0.03890529,65336.0,65335.0,1.83841665]
[1718633523800,0.03890529,65336.0,65335.0,1.77489512]
[1718633524214,0.03890529,65337.0,65336.0,1.071381]
[1718633524425,0.03890529,65338.0,65337.0,0.765262]
[1718633524641,0.03890529,65338.0,65337.0,1.25577441]
[1718633524852,0.05392129,65338.0,65337.0,1.25577441]
[1718633525300,0.05392129,65338.0,65337.0,1.2557739]
[1718633525523,0.05392129,65338.0,65337.0,1.25430789]
[1718633525742,0.05592129,65338.0,65337.0,1.25430789]
[1718633526006,0.05592129,65338.0,65337.0,2.12111789]
[1718633526007,0.002,65338.0,65337.0,2.12111789]
[1718633526227,0.05392129,65349.0,65348.0,1.320985]
[1718633526458,0.015016,65349.0,65348.0,1.50392589]
[1718633526677,0.05392129,65349.0,65348.0,1.50392589]
[1718633528406,0.015016,65349.0,65348.0,1.50392589]
[1718633528593,0.05492129,65349.0,65348.0,1.51792589]
[1718633528789,0.05592129,65349.0,65348.0,1.46840472]
[1718633529035,0.05592129,65349.0,65348.0,1.53191113]
[1718633529449,0.002,65349.0,65348.0,1.53191113]
[1718633529653,0.002,65349.0,65348.0,1.53671113]
[1718633529886,0.05592129,65349.0,65348.0,1.53191113]
[1718633530092,0.05592129,65349.0,65348.0,1.348985]
[1718633531021,0.05592129,65349.0,65348.0,1.46891109]
[1718633531242,0.002,65349.0,65348.0,1.46891006]
[1718633531417,0.002,65349.0,65348.0,1.5324156]
[1718633532307,0.002,65349.0,65348.0,1.53241573]
[1718633532757,0.002,65349.0,65348.0,1.83866239]
[1718633532959,0.002,65349.0,65348.0,1.53260939]
[1718633533196,0.002,65349.0,65348.0,2.16746239]
[1718633533635,0.00293501,65349.0,65348.0,2.26746239]
[1718633534086,0.03890529,65364.0,65363.0,1.07094]
[1718633534339,0.03890529,65365.0,65364.0,0.458967]
[1718633534537,0.03890529,65365.0,65364.0,1.170923]
[1718633534765,0.03890529,65365.0,65364.0,1.481701]
[1718633534979,0.03890529,65365.0,65364.0,1.476901]
[1718633535181,0.05392129,65365.0,65364.0,1.35430481]
[1718633535395,0.05392129,65365.0,65364.0,1.170923]
[1718633536685,0.05392129,65365.0,65364.0,1.184923]
[1718633537530,0.61812129,65365.0,65364.0,0.014]
[1718633537736,0.78110829,65365.0,65364.0,0.014]
[1718633537940,1.07708229,65365.0,65364.0,0.014]
[1718633538348,0.03890529,65360.0,65359.0,1.071006]
[1718633538564,0.05392129,65360.0,65359.0,1.071006]
[1718633538777,0.05392129,65360.0,65359.0,0.765004]
[1718633539198,0.03890529,65360.0,65359.0,0.765004]
[1718633539410,0.03890529,65364.0,65360.0,0.305997]
[1718633539659,0.03890529,65364.0,65358.0,0.03543]
[1718633539838,0.03890529,65362.0,65361.0,0.305992]
[1718633540040,0.03890529,65362.0,65361.0,1.070972]
[1718633540251,0.03872118,65362.0,65361.0,1.070972]
[1718633540940,0.05373718,65362.0,65361.0,0.152996]
[1718633541118,0.05373718,65360.0,65359.0,0.014]
[1718633541533,0.05373718,65360.0,65359.0,0.473003]
[1718633541932,0.05373718,65360.0,65359.0,0.167001]
[1718633542482,0.06847657,65360.0,65359.0,0.459003]
[1718633542684,0.06847657,65360.0,65359.0,0.765005]
[1718633542886,0.06847657,65360.0,65359.0,0.779005]
[1718633543088,0.05373718,65360.0,65359.0,0.779005]
[1718633543422,0.05373718,65360.0,65359.0,0.765005]
[1718633544270,0.05373718,65360.0,65359.0,0.459003]
[1718633544506,0.05373718,65360.0,65359.0,0.765005]
[1718633544748,0.0534337,65360.0,65359.0,1.069005]
[1718633544957,0.03872118,65360.0,65359.0,1.076007]
[1718633545415,0.30083718,65360.0,65359.0,0.311002]
[1718633545636,0.30083718,65360.0,65359.0,0.459003]
[1718633545854,0.31560053,65360.0,65359.0,0.765005]
[1718633546098,0.31560053,65360.0,65359.0,0.779005]
[1718633546310,0.31560053,65360.0,65359.0,0.784005]
[1718633546523,0.31560053,65360.0,65359.0,0.765005]
[1718633546727,0.31560053,65360.0,65359.0,1.071007]
[1718633546728,0.06850053,65360.0,65359.0,1.071007]
[1718633546955,0.06850053,65360.0,65359.0,0.777005]
[1718633547171,0.06850053,65360.0,65359.0,0.471003]
[1718633547408,0.06850053,65360.0,65359.0,0.484003]
[1718633547614,0.06850053,65360.0,65359.0,0.790005]
[1718633547823,0.06850053,65360.0,65359.0,0.778005]
[1718633548491,0.06850053,65360.0,65359.0,0.472003]
[1718633548901,0.06850053,65360.0,65359.0,0.779005]
[1718633549627,0.06850053,65360.0,65359.0,0.487003]
[1718633550041,0.06850053,65360.0,65359.0,0.793005]
[1718633550510,0.06850053,65360.0,65359.0,0.779005]
[1718633550720,0.06850053,65360.0,65359.0,0.473003]
[1718633550925,0.06850053,65360.0,65359.0,0.487003]
[1718633551128,0.06850053,65360.0,65359.0,0.473003]
[1718633551346,0.05348453,65360.0,65359.0,1.085007]
[1718633551550,0.05348453,65360.0,65359.0,1.338107]
[1718633551938,0.03872118,65360.0,65359.0,1.644109]
[1718633552306,0.03872118,65360.0,65359.0,1.62127142]
[1718633552510,0.05373718,65361.0,65360.0,1.070989]
[1718633552724,0.03872118,65361.0,65360.0,1.25415342]
[1718633553121,0.05373718,65361.0,65360.0,1.25415342]
[1718633553931,0.05373718,65361.0,65360.0,1.26815342]
[1718633554090,0.03872118,65361.0,65360.0,1.28215342]
[1718633554706,0.05373718,65361.0,65360.0,1.28215342]
[1718633554908,0.05373718,65361.0,65360.0,1.26815342]
[1718633555336,0.05373718,65361.0,65360.0,1.28215342]
[1718633555943,0.05373718,65361.0,65360.0,1.26815342]
[1718633556398,0.05373718,65361.0,65360.0,1.28215342]
[1718633556743,0.03872118,65362.0,65360.0,1.43515242]
[1718633556947,0.03872118,65364.0,65361.0,0.18316442]
[1718633557156,0.03872118,65364.0,65363.0,0.764957]
[1718633557350,0.03872118,65364.0,65363.0,1.81420442]
[1718633557605,0.05373718,65364.0,65363.0,1.81420442]
[1718633558674,0.05373718,65364.0,65363.0,1.52170442]
[1718633558883,0.03872118,65364.0,65363.0,1.52170442]
[1718633559748,0.03872118,65364.0,65363.0,1.52649804]
[1718633560216,0.03872118,65364.0,65363.0,1.54049804]
[1718633561024,0.03872118,65364.0,65363.0,1.53569804]
[1718633561223,0.03872118,65364.0,65363.0,1.84168104]
[1718633561504,0.03965619,65371.0,65366.0,0.0048]
[1718633561703,0.03872118,65369.0,65368.0,0.45894]
[1718633561936,0.03872118,65369.0,65368.0,1.25401804]
[1718633562064,0.03965619,65371.0,65370.0,0.764875]
[1718633562263,0.03965619,65371.0,65370.0,1.55993304]
[1718633562566,0.0544647,65371.0,65370.0,1.25398304]
[1718633562699,0.03965619,65371.0,65370.0,1.25398304]
[1718633562905,0.05467219,65371.0,65370.0,1.25398304]
[1718633563523,0.03965619,65371.0,65370.0,1.25398304]
[1718633563798,0.00093501,65371.0,65370.0,1.25898304]
[1718633563960,0.03965619,65371.0,65370.0,1.25898304]
[1718633564144,0.03965619,65371.0,65370.0,1.25398304]
[1718633564353,0.0544647,65371.0,65370.0,1.25398304]
[1718633564761,0.0544647,65371.0,65370.0,1.26198304]
[1718633565079,0.0694807,65371.0,65370.0,1.2619785]
[1718633565468,0.0694807,65371.0,65370.0,1.26357702]
[1718633565881,0.0694807,65371.0,65370.0,1.27257702]
[1718633566090,0.0694807,65371.0,65370.0,0.35472702]
[1718633566572,0.30857219,65371.0,65370.0,0.017]
[1718633566791,1.1183997,65371.0,65370.0,0.017]
[1718633567661,1.4243457,65371.0,65370.0,0.017]
[1718633567897,1.1183997,65371.0,65370.0,0.017]
[1718633569163,0.6594807,65371.0,65370.0,0.017]
[1718633569587,0.6494807,65371.0,65370.0,0.781875]
[1718633570001,0.6494807,65371.0,65370.0,0.475925]
[1718633570270,0.6494807,65371.0,65370.0,0.169975]
[1718633570493,0.6494807,65371.0,65370.0,0.32295]
[1718633570711,0.6494807,65371.0,65370.0,0.475925]
[1718633571148,0.6494807,65371.0,65370.0,0.169975]
[1718633571371,0.6494807,65371.0,65370.0,0.475925]
[1718633571571,0.6594807,65371.0,65370.0,0.017]
[1718633571788,0.8124537,65371.0,65370.0,0.017]
[1718633572024,1.1183997,65371.0,65370.0,0.017]
[1718633572474,0.8124537,65371.0,65370.0,0.017]
[1718633574373,1.1183997,65371.0,65370.0,0.017]
[1718633575346,1.4243457,65371.0,65370.0,0.017]
[1718633576358,1.4243457,65371.0,65370.0,0.008]
[1718633576774,1.4243457,65371.0,65370.0,0.017]
[1718633577420,1.1083997,65371.0,65370.0,0.008]
[1718633577631,1.1183997,65371.0,65370.0,0.14098949]
[1718633577856,1.1183997,65371.0,65370.0,0.006]
[1718633578041,1.4243457,65371.0,65370.0,0.006]
[1718633578455,1.7302917,65371.0,65370.0,0.006]
[1718633578668,1.4243457,65371.0,65370.0,0.006]
[1718633578844,1.7302917,65371.0,65370.0,0.012]
[1718633579249,1.4243457,65371.0,65370.0,0.006]
[1718633579458,0.780075,65370.0,65369.0,0.1]
[1718633579789,0.84344041,65370.0,65369.0,0.22699344]
[1718633580963,0.83344041,65370.0,65369.0,0.22699344]
[1718633581202,0.84344041,65370.0,65369.0,0.22699344]
[1718633581413,0.53749041,65370.0,65369.0,0.22699344]
[1718633582009,0.06856541,65370.0,65369.0,0.83890344]
[1718633582214,0.05354941,65370.0,65369.0,1.29783544]
[1718633582418,0.05354941,65370.0,65369.0,1.86393544]
[1718633582644,0.03872118,65370.0,65369.0,1.86193544]
[1718633583114,0.03872118,65370.0,65369.0,2.17089044]
[1718633583323,0.00093501,65371.0,65370.0,1.070825]
[1718633583506,0.03965619,65371.0,65370.0,1.42224997]
[1718633584111,0.03965619,65371.0,65370.0,1.38824255]
[1718633584690,0.00093501,65371.0,65370.0,1.69419255]
[1718633584889,0.00093501,65371.0,65370.0,1.84526915]
[1718633585287,0.00093501,65371.0,65370.0,1.87589915]
[1718633585528,0.00093501,65371.0,65370.0,1.87588425]
[1718633586133,0.00093501,65371.0,65370.0,1.88988425]
[1718633586287,0.00093501,65371.0,65370.0,1.89468425]
[1718633586524,0.00093501,65371.0,65370.0,1.89268425]
[1718633586765,0.00093501,65371.0,65370.0,1.90668425]
[1718633587040,0.00093501,65371.0,65370.0,1.58393425]
[1718633587469,0.00093501,65371.0,65370.0,1.59636192]
[1718633589127,0.00093501,65371.0,65370.0,0.96146192]
[1718633589343,0.52974519,65371.0,65370.0,0.3314007]
[1718633589552,0.67271819,65371.0,65370.0,0.14096028]
[1718633589763,0.84065591,65371.0,65370.0,0.15496028]
[1718633589978,0.53470991,65371.0,65370.0,0.15496028]
[1718633590215,0.53470991,65371.0,65370.0,0.14096028]
[1718633590216,0.38173691,65371.0,65370.0,0.14096028]
[1718633590631,0.53470991,65371.0,65370.0,0.14096028]
[1718633591075,0.38173691,65371.0,65370.0,0.12696028]
[1718633591529,1.46254791,65371.0,65370.0,0.14096028]
[1718633592005,1.15660191,65371.0,65370.0,0.14096028]
[1718633592251,1.15660191,65371.0,65370.0,0.15496028]
[1718633592509,1.15660191,65371.0,65370.0,0.14096028]
[1718633592986,1.15660191,65371.0,65370.0,0.13596028]
[1718633593227,1.15660191,65371.0,65370.0,0.14496028]
[1718633593855,1.14660191,65371.0,65370.0,0.14496028]
[1718633594273,0.38173691,65371.0,65370.0,0.14496028]
[1718633594481,0.38173691,65371.0,65370.0,0.45091028]
[1718633594696,0.38173691,65371.0,65370.0,0.60388528]
[1718633594866,0.38173691,65371.0,65370.0,0.45091028]
[1718633595010,0.38173691,65371.0,65370.0,0.14496028]
[1718633595224,0.06963691,65371.0,65370.0,0.14496028]
[1718633595426,0.06963691,65371.0,65370.0,0.60388528]
[1718633595646,0.06963691,65371.0,65370.0,0.59488528]
[1718633595852,0.06963691,65371.0,65370.0,0.28893528]
[1718633596045,0.06963691,65371.0,65370.0,0.13496028]
[1718633596260,0.06963691,65371.0,65370.0,0.14396028]
[1718633596911,1.15044791,65371.0,65370.0,0.13496028]
[1718633597125,1.71604791,65371.0,65370.0,0.14396028]
[1718633597543,1.41010191,65371.0,65370.0,0.14396028]
[1718633597993,1.71604791,65371.0,65370.0,0.14396028]
[1718633598236,1.41010191,65371.0,65370.0,0.14396028]
[1718633600266,1.41010191,65371.0,65370.0,0.60288528]
[1718633600267,0.63523691,65371.0,65370.0,0.60288528]
[1718633600473,0.79820991,65371.0,65370.0,0.14396028]
[1718633600795,1.10415591,65371.0,65370.0,0.14396028]
[1718633601340,1.09415591,65371.0,65370.0,0.14396028]
[1718633601572,0.06963691,65371.0,65370.0,0.60288528]
[1718633602183,0.06963691,65371.0,65370.0,0.14396028]
[1718633602184,0.22260991,65371.0,65370.0,0.14396028]
[1718633602391,1.15044791,65371.0,65370.0,0.14396028]
[1718633602550,0.84450191,65371.0,65370.0,0.14396028]
[1718633602748,0.83450191,65371.0,65370.0,0.14396028]
[1718633603755,0.84450191,65371.0,65370.0,0.14396028]
[1718633605101,0.83450191,65371.0,65370.0,0.14396028]
[1718633606108,0.84450191,65371.0,65370.0,0.14398758]
[1718633606368,0.83450191,65371.0,65370.0,0.14398831]
[1718633606534,0.84450191,65371.0,65370.0,0.14398831]
[1718633607357,0.53855591,65371.0,65370.0,0.14398831]
[1718633607927,1.50400191,65371.0,65370.0,0.14398831]
[1718633608129,1.40400191,65371.0,65370.0,0.017]
[1718633608309,1.70994791,65371.0,65370.0,0.017]
[1718633609392,1.80994791,65371.0,65370.0,0.008]
[1718633609749,1.80994791,65371.0,65370.0,0.017]
[1718633609951,2.11589391,65371.0,65370.0,0.017]
[1718633610159,1.22474618,65370.0,65369.0,0.1]
[1718633610356,1.55533838,65370.0,65369.0,0.1]
[1718633610556,2.10283838,65370.0,65369.0,0.1]
[1718633611891,2.10583838,65370.0,65369.0,0.1]
[1718633612736,2.10583838,65370.0,65369.0,0.102]
[1718633613180,2.29163838,65370.0,65369.0,0.102]
[1718633613407,2.28863838,65370.0,65369.0,0.102]
[1718633613815,2.29063838,65370.0,65369.0,0.103]
[1718633614019,2.29063838,65370.0,65369.0,0.101]
[1718633614222,2.29263838,65370.0,65369.0,0.102]
[1718633614737,2.19263838,65370.0,65369.0,0.102]
[1718633615252,2.29263838,65370.0,65369.0,0.102]
[1718633618077,2.10683838,65370.0,65369.0,0.102]
[1718633619549,2.29263838,65370.0,65369.0,0.102]
[1718633619764,2.33557025,65370.0,65369.0,0.102]
[1718633620821,2.33553737,65370.0,65369.0,0.102]
[1718633623634,2.64148737,65370.0,65369.0,0.102]
[1718633623823,2.33553737,65370.0,65369.0,0.102]
[1718633624408,2.38553737,65370.0,65369.0,0.102]
[1718633626484,2.38353737,65370.0,65369.0,0.101]
[1718633626880,2.39462292,65370.0,65369.0,0.102]
[1718633627551,2.86167292,65370.0,65369.0,0.102]
[1718633627756,2.86167292,65370.0,65362.0,0.00085]
[1718633627757,2.47974318,65363.0,65362.0,0.00085]
[1718633627968,0.82895218,65341.0,65340.0,0.2509]
[1718633628210,0.82895218,65341.0,65337.0,0.319]
[1718633628211,0.82888718,65338.0,65337.0,0.5699]
[1718633628416,1.13498718,65338.0,65337.0,0.5699]
[1718633628654,0.82888718,65338.0,65337.0,0.5699]
[1718633628862,0.52280018,65336.0,65335.0,0.00851]
[1718633629267,0.82890918,65336.0,65335.0,0.00851]
[1718633629492,0.84362,65336.0,65335.0,0.00851]
[1718633630102,0.83362,65336.0,65335.0,0.00851]
[1718633630299,0.84462,65336.0,65335.0,0.01651]
[1718633630978,0.538511,65336.0,65335.0,0.01651]
[1718633631679,0.84462,65336.0,65335.0,0.01651]
[1718633631881,0.539511,65336.0,65335.0,0.02351]
[1718633632105,0.080348,65336.0,65335.0,0.02351]
[1718633632268,0.231402,65336.0,65335.0,0.00851]
[1718633632468,0.537511,65336.0,65335.0,0.01351]
[1718633632834,0.537511,65336.0,65335.0,0.01051]
[1718633632968,0.53732686,65336.0,65335.0,0.01051]
[1718633633309,0.53732686,65336.0,65335.0,0.01251]
[1718633633511,0.53832686,65336.0,65335.0,0.02051]
[1718633633960,0.84443586,65336.0,65335.0,0.01651]
[1718633634167,1.14954486,65336.0,65335.0,0.00851]
[1718633634396,1.67804486,65336.0,65335.0,0.00851]
[1718633634817,2.00084486,65336.0,65335.0,0.00851]
[1718633635680,2.00084486,65336.0,65335.0,0.01251]
[1718633635924,1.71604486,65336.0,65335.0,0.01451]
[1718633636356,1.71604486,65336.0,65335.0,0.00851]
[1718633636541,1.81604486,65336.0,65335.0,0.00851]
[1718633637439,1.71604486,65336.0,65335.0,0.00951]
[1718633638248,1.81604486,65336.0,65335.0,0.00951]
[1718633638592,1.87729886,65336.0,65335.0,0.00951]
[1718633638826,1.47118986,65336.0,65335.0,0.00951]
[1718633639011,1.40993586,65336.0,65335.0,0.00951]
[1718633639224,0.23221786,65336.0,65335.0,0.00951]
[1718633639847,0.06916386,65336.0,65335.0,0.00951]
[1718633640103,0.06916386,65336.0,65335.0,0.315624]
[1718633640458,0.06916386,65336.0,65335.0,0.162567]
[1718633640459,0.05445304,65336.0,65335.0,0.162567]
[1718633640808,0.05445304,65336.0,65335.0,0.00951]
[1718633641022,0.06893859,65336.0,65335.0,0.00951]
[1718633641424,0.06893859,65336.0,65335.0,0.162567]
[1718633641604,0.06893859,65336.0,65335.0,0.468681]
[1718633641804,0.05445304,65336.0,65335.0,0.468681]
[1718633642148,0.05445304,65336.0,65335.0,0.774795]
[1718633642554,0.05445304,65336.0,65335.0,0.468681]
[1718633642763,0.05445304,65336.0,65335.0,0.162567]
[1718633643103,0.06893859,65336.0,65335.0,0.162567]
[1718633643320,0.84421059,65336.0,65335.0,0.00951]
[1718633643523,1.46601959,65336.0,65335.0,0.00951]
[1718633644131,2.12962859,65336.0,65335.0,0.00951]
[1718633646035,2.00931959,65336.0,65335.0,0.00851]
[1718633646483,2.02131959,65336.0,65335.0,0.00951]
[1718633646690,2.03331959,65336.0,65335.0,0.01051]
[1718633647120,2.00831959,65336.0,65335.0,0.00851]
[1718633647325,2.02031959,65336.0,65335.0,0.00951]
[1718633647528,2.03231959,65336.0,65335.0,0.01051]
[1718633647746,2.38842859,65336.0,65335.0,0.01051]
[1718633647944,2.37642859,65336.0,65335.0,0.00851]
[1718633648179,2.38942859,65336.0,65335.0,0.00951]
[1718633648812,1.98331959,65336.0,65335.0,0.00951]
[1718633649863,1.99631959,65336.0,65335.0,0.01051]
[1718633650278,2.09631959,65336.0,65335.0,0.01051]
[1718633650822,1.99631959,65336.0,65335.0,0.01051]
[1718633651017,2.09631959,65336.0,65335.0,0.01051]
[1718633651291,1.67761804,65331.0,65330.0,0.01851]
[1718633651654,2.18399491,65331.0,65330.0,0.01851]
[1718633651856,2.28399491,65331.0,65330.0,0.01851]
[1718633652264,2.69012791,65331.0,65330.0,0.01851]
[1718633652434,1.69729704,65320.0,65319.0,0.00085]
[1718633652842,1.71163206,65320.0,65319.0,0.00085]
[1718633653272,2.11781606,65320.0,65319.0,0.00085]
[1718633653474,2.01781606,65320.0,65319.0,0.00085]
[1718633653676,2.11781606,65320.0,65319.0,0.00085]
[1718633654095,2.11781606,65320.0,65319.0,0.00185]
[1718633654304,2.16881606,65320.0,65319.0,0.00185]
[1718633654565,2.35461606,65320.0,65319.0,0.00185]
[1718633654867,2.04843206,65320.0,65319.0,0.00185]
[1718633656803,2.04743206,65320.0,65319.0,0.00085]
[1718633657160,2.04843206,65320.0,65319.0,0.00085]
[1718633657362,2.04743206,65320.0,65319.0,0.00085]
[1718633657976,2.07343206,65320.0,65319.0,0.00085]
[1718633658575,2.37961606,65320.0,65319.0,0.00085]
[1718633658744,2.07343206,65320.0,65319.0,0.00085]
[1718633659887,1.97343206,65320.0,65319.0,0.00085]
[1718633660906,2.07343206,65320.0,65319.0,0.00085]
[1718633661921,2.59071606,65320.0,65319.0,0.00085]
[1718633662124,2.95206269,65320.0,65319.0,0.00085]
[1718633662342,2.28453206,65320.0,65319.0,0.00085]
[1718633662516,2.32807776,65320.0,65319.0,0.00085]
[1718633662734,2.28453206,65320.0,65319.0,0.00085]
[1718633663002,2.59071606,65320.0,65319.0,0.00085]
[1718633663442,2.90852744,65320.0,65319.0,0.00085]
[1718633663659,3.05207575,65320.0,65319.0,0.00085]
[1718633664289,3.07507575,65320.0,65319.0,0.00085]
[1718633664490,0.87909004,65305.0,65304.0,0.00851]
[1718633664928,0.89183242,65305.0,65304.0,0.00851]
[1718633665367,0.06619542,65305.0,65304.0,0.161639]
[1718633665580,0.06619542,65305.0,65304.0,0.716898]
[1718633665784,0.06619542,65305.0,65304.0,0.25751]
[1718633665992,0.05345304,65305.0,65304.0,0.410639]
[1718633666407,0.06619542,65305.0,65304.0,0.25751]
[1718633667459,1.14808742,65305.0,65304.0,0.00851]
[1718633667667,0.83183242,65305.0,65304.0,0.00851]
[1718633667866,0.83283242,65305.0,65304.0,0.00851]
[1718633668075,0.84383242,65305.0,65304.0,0.01051]
[1718633668506,0.84283242,65305.0,65304.0,0.01051]
[1718633668726,0.06619542,65305.0,65304.0,0.467898]
[1718633668939,0.05345304,65305.0,65304.0,1.340957]
[1718633669615,0.03872118,65305.0,65304.0,1.340957]
[1718633669820,0.03872118,65305.0,65304.0,1.46807233]
[1718633670020,0.05345304,65305.0,65304.0,1.46807209]
[1718633670336,0.05345304,65305.0,65304.0,1.340957]
[1718633670537,0.05345304,65305.0,65304.0,1.342957]
[1718633670743,0.05345304,65305.0,65304.0,1.47007151]
[1718633670943,0.05345304,65305.0,65304.0,1.340957]
[1718633671449,0.05545304,65305.0,65304.0,1.47007235]
[1718633671677,0.04072118,65305.0,65304.0,1.77633135]
[1718633672090,0.03872118,65305.0,65304.0,1.77433135]
[1718633672495,0.04072118,65305.0,65304.0,1.77633135]
[1718633673645,0.002,65305.0,65304.0,1.77633135]
[1718633673846,0.001,65305.0,65304.0,2.23682869]
[1718633674056,0.03872118,65318.0,65313.0,0.0049]
[1718633674255,0.03872118,65318.0,65317.0,1.043597]
[1718633674457,0.03872118,65321.0,65320.0,0.464176]
[1718633674666,0.03872118,65321.0,65320.0,2.09414335]
[1718633674824,0.03872118,65321.0,65320.0,2.08924335]
[1718633675246,0.03872118,65323.0,65322.0,1.962087]
[1718633675467,0.03872118,65324.0,65323.0,0.765425]
[1718633675703,0.03872118,65324.0,65323.0,1.19871035]
[1718633677244,0.03872118,65324.0,65323.0,1.50488035]
[1718633678108,0.03972118,65324.0,65323.0,1.50688035]
[1718633678535,0.03972118,65324.0,65323.0,2.06178035]
[1718633678536,0.001,65324.0,65323.0,2.06178035]
[1718633678740,0.001,65324.0,65323.0,2.36795035]
[1718633678963,0.001,65324.0,65323.0,2.41931051]
[1718633679166,0.001,65324.0,65323.0,2.51931051]
[1718633680407,0.002,65324.0,65323.0,2.46795035]
[1718633680620,0.001,65324.0,65323.0,2.46795035]
[1718633680835,0.00093501,65336.0,65335.0,1.377513]
[1718633681061,0.03965619,65336.0,65335.0,1.939613]
[1718633681262,0.03965619,65336.0,65335.0,2.06664702]
[1718633682524,0.00093501,65336.0,65335.0,2.06664702]
[1718633682730,0.03965619,65336.0,65335.0,2.06664702]
[1718633683145,0.03965619,65336.0,65335.0,2.06174702]
[1718633683913,0.05438805,65336.0,65335.0,0.58620502]
[1718633684117,0.03965619,65336.0,65335.0,0.459171]
[1718633684368,0.05438805,65336.0,65335.0,0.153057]
[1718633684593,0.05438805,65336.0,65335.0,0.459171]
[1718633684748,0.06752573,65336.0,65335.0,0.765285]
[1718633684951,0.04065619,65336.0,65335.0,1.389513]
[1718633685354,0.04065619,65336.0,65335.0,1.74753455]
[1718633685568,0.04065619,65336.0,65335.0,1.314385]
[1718633685784,0.05638805,65336.0,65335.0,0.165057]
[1718633686000,0.05638805,65336.0,65335.0,0.012]
[1718633686439,0.03872118,65334.0,65331.0,0.3043]
[1718633686648,0.05345304,65334.0,65333.0,0.153062]
[1718633686862,0.05345304,65334.0,65333.0,0.459186]
[1718633687271,0.05345304,65334.0,65333.0,0.76531]
[1718633688533,0.05445304,65334.0,65333.0,0.77631]
[1718633689589,0.05445304,65334.0,65333.0,0.484186]
[1718633689791,0.05545304,65334.0,65333.0,0.484186]
[1718633690816,0.04072118,65334.0,65333.0,0.79031]
[1718633691020,0.04072118,65334.0,65333.0,1.346734]
[1718633692015,0.05545304,65334.0,65333.0,0.734486]
[1718633692227,0.05545304,65334.0,65333.0,0.025]
[1718633692648,0.06857703,65334.0,65333.0,0.484186]
[1718633693061,0.06857703,65334.0,65333.0,0.79031]
[1718633693939,0.05384517,65334.0,65333.0,1.096434]
[1718633694153,0.04072118,65334.0,65333.0,1.096434]
[1718633695248,0.04072118,65334.0,65333.0,1.402558]
[1718633695421,0.05435118,65334.0,65333.0,1.962658]
[1718633695629,0.01563,65334.0,65333.0,1.967558]
[1718633695840,0.01563,65334.0,65333.0,2.09459677]
[1718633696324,0.05435118,65334.0,65333.0,2.09459677]
[1718633696452,0.05445118,65334.0,65333.0,2.09459677]
[1718633696662,0.01573,65334.0,65333.0,2.09459677]
[1718633696872,0.05445118,65334.0,65333.0,2.09459677]
[1718633697994,0.05445118,65334.0,65333.0,2.0896918]
[1718633698344,0.05445118,65334.0,65333.0,2.0945918]
[1718633698771,0.01573,65334.0,65333.0,2.0945918]
[1718633698977,0.01573,65334.0,65333.0,2.5007158]
[1718633699150,0.01573,65334.0,65333.0,2.6865158]
[1718633699361,0.01666501,65334.0,65333.0,2.87705435]
[1718633700982,0.01666501,65334.0,65333.0,2.38513035]
[1718633701704,0.01666501,65334.0,65333.0,2.69125435]
[1718633701952,0.01666501,65334.0,65333.0,3.03070435]
[1718633702975,0.01633501,65334.0,65333.0,3.00570435]
[1718633703159,1e-08,65336.0,65335.0,0.1049]
[1718633703367,0.03872118,65355.0,65354.0,0.153012]
[1718633703583,0.05345304,65355.0,65354.0,1.1980921]
[1718633704993,0.03872118,65355.0,65354.0,1.1980921]
[1718633706694,0.03872118,65355.0,65354.0,1.1990921]
[1718633707126,0.03872118,65356.0,65355.0,0.76505]
[1718633707340,0.03872118,65356.0,65355.0,1.21644804]
[1718633707566,0.03872118,65357.0,65356.0,1.071056]
[1718633707785,0.03872118,65360.0,65359.0,0.306002]
[1718633708013,0.03872118,65360.0,65359.0,1.1980121]
[1718633708440,0.05345304,65360.0,65359.0,1.1980121]
[1718633709281,0.03872118,65360.0,65359.0,1.1980121]
[1718633709910,0.05345304,65360.0,65359.0,1.1980121]
[1718633710117,0.03872118,65360.0,65359.0,1.1980121]
[1718633710466,0.05345304,65360.0,65359.0,1.1980121]
[1718633710876,0.05345304,65360.0,65359.0,1.19799855]
[1718633711082,0.03872118,65360.0,65359.0,1.19799855]
[1718633711296,0.01473186,65365.0,65359.0,1.19799855]
[1718633711297,0.03872118,65361.0,65360.0,1.070989]
[1718633711507,0.01473186,65365.0,65363.0,0.764957]
[1718633711508,0.03872118,65364.0,65363.0,0.764957]
[1718633711717,0.03872118,65364.0,65363.0,1.07094]
[1718633711921,0.03872118,65364.0,65363.0,1.19793155]
[1718633712133,0.05345304,65364.0,65363.0,1.19793155]
[1718633712342,0.05345304,65364.0,65363.0,0.89194855]
[1718633712755,0.03872118,65364.0,65363.0,1.19793155]
[1718633713169,0.05345304,65364.0,65363.0,1.19793155]
[1718633713375,0.05345304,65364.0,65363.0,1.19893155]
[1718633713990,0.05345304,65364.0,65363.0,1.19393155]